bitfinex/quotes_ETHUSD_20250815
["timestamp","ask_amount","ask_price","bid_price","bid_amount"]
[1755250778316,3.312,4636.1,4635.9,2.15706497]
[1755250779223,0.0004,4636.2,4636.0,0.108]
[1755250779436,3.312,4636.1,4636.0,2.26503192]
[1755250779636,3.312,4636.1,4636.0,2.70724016]
[1755250780237,3.312,4636.1,4636.0,2.26503192]
[1755250780861,0.0004,4636.2,4636.1,2.15698539]
[1755250781156,3.3124,4636.2,4636.1,2.15698539]
[1755250781966,3.3124,4636.2,4636.1,2.17855524]
[1755250781967,0.0004,4636.2,4636.1,2.17855524]
[1755250782125,0.0004,4636.2,4636.1,2.15698539]
[1755250782325,0.0004,4636.2,4636.1,2.66653712]
[1755250782766,0.0004,4636.2,4636.1,6.36160697]
[1755250782926,0.0004,4636.2,4636.1,6.34003712]
[1755250784043,0.0004,4636.2,4636.1,6.89003712]
[1755250784245,0.0004,4636.2,4636.1,6.97640312]
[1755250787169,0.0004,4636.2,4636.1,6.30290312]
[1755250787369,0.0004,4636.2,4636.1,9.61290312]
[1755250787774,0.0004,4636.2,4636.1,9.92960312]
[1755250788276,0.0004,4636.2,4636.1,9.61290312]
[1755250789939,0.0004,4636.2,4636.1,5.66653712]
[1755250790159,1.0792,4636.2,4636.1,5.15698539]
[1755250790655,1.0784,4636.2,4636.1,5.15698539]
[1755250791477,0.4604,4636.2,4636.1,5.15698539]
[1755250791677,0.0004,4636.3,4636.2,2.15693887]
[1755250792061,0.452,4636.3,4636.2,2.15693887]
[1755250792241,0.0004,4636.3,4636.2,2.15693887]
[1755250792443,0.452,4636.3,4636.2,2.15693887]
[1755250793644,0.0004,4636.3,4636.2,9.56070068]
[1755250793858,0.0004,4636.3,4636.2,9.5391313]
[1755250799166,1.0554,4636.3,4636.2,6.2301313]
[1755250799365,1.0554,4636.3,4636.0,0.108]
[1755250799567,1.055,4636.2,4636.1,2.15694651]
[1755250800674,1.0542,4636.2,4635.4,3.309]
[1755250800900,0.0004,4636.3,4635.6,0.108]
[1755250800901,0.02016281,4636.1,4635.6,0.108]
[1755250801102,0.108,4635.7,4635.1,2.26644431]
[1755250801309,0.108,4635.7,4635.1,0.109]
[1755250801607,3.416,4635.7,4635.1,2.26643412]
[1755250801811,3.416,4635.7,4635.1,0.109]
[1755250801978,3.416,4635.7,4635.2,2.15740421]
[1755250802178,3.416,4635.7,4635.1,2.26644789]
[1755250802708,3.416,4635.7,4635.3,2.15734411]
[1755250802709,0.6034,4635.6,4635.3,2.15734411]
[1755250803008,0.4516,4635.5,4635.3,2.15734411]
[1755250803414,0.6034,4635.4,4635.3,2.15734411]
[1755250803826,1.055,4635.4,4635.3,2.15734411]
[1755250804231,1.055,4635.4,4635.1,0.109]
[1755250804413,1.055,4635.3,4635.1,0.109]
[1755250804600,1.055,4635.2,4635.1,0.109]
[1755250804803,3.21240421,4635.2,4635.1,0.109]
[1755250805021,3.87754059,4635.2,4635.1,0.001]
[1755250806223,3.85737778,4635.2,4635.1,0.001]
[1755250807998,3.87754059,4635.2,4635.1,0.001]
[1755250808898,7.18554059,4635.2,4635.1,0.001]
[1755250809218,7.16537778,4635.2,4635.1,0.001]
[1755250810391,14.75001831,4635.2,4635.1,0.001]
[1755250811290,14.75101831,4635.2,4635.1,0.001]
[1755250813742,14.20101831,4635.2,4635.1,0.001]
[1755250818997,21.79101831,4635.2,4635.1,0.001]
[1755250822789,21.79001831,4635.2,4635.1,0.001]
[1755250822950,4.03064053,4634.2,4634.1,0.001]
[1755250823289,7.33864053,4634.2,4634.1,0.001]
[1755250823449,7.44664053,4634.2,4634.1,0.001]
[1755250826391,4.13864053,4634.2,4634.1,0.001]
[1755250826543,7.44664053,4634.2,4634.1,0.001]
[1755250830690,9.60451028,4634.2,4634.1,0.001]
[1755250831389,9.93565028,4634.2,4634.1,0.001]
[1755250831575,10.93295028,4634.2,4634.1,0.001]
[1755250831783,9.93565028,4634.2,4634.1,0.001]
[1755250832994,9.60371028,4634.2,4634.1,0.001]
[1755250835610,10.0653146,4634.2,4634.1,0.001]
[1755250838113,6.18677398,4634.1,4633.7,0.001]
[1755250838310,0.108,4633.9,4633.7,0.001]
[1755250839697,0.56960432,4633.9,4633.7,0.001]
[1755250841400,2.72761377,4633.9,4633.7,0.001]
[1755250841603,0.56960432,4633.9,4633.7,0.001]
[1755250842623,8.53403068,4633.9,4633.7,0.001]
[1755250842807,8.51386787,4633.9,4633.7,0.001]
[1755250843283,8.71461479,4633.9,4633.7,0.001]
[1755250844717,9.29233857,4633.9,4633.7,0.001]
[1755250845222,9.09159165,4633.9,4633.7,0.001]
[1755250846623,8.51386787,4633.9,4633.7,0.001]
[1755250846829,6.1849897,4633.6,4633.5,0.001]
[1755250846989,16.5309897,4633.6,4633.5,0.001]
[1755250847520,17.5282897,4633.6,4633.5,0.001]
[1755250847721,17.98989402,4633.6,4633.5,0.001]
[1755250850627,17.98989402,4633.6,4633.5,0.0018]
[1755250850814,18.92098056,4633.6,4633.5,0.0018]
[1755250851323,14.61768056,4633.6,4633.5,0.0018]
[1755250851526,18.92098056,4633.6,4633.5,0.0018]
[1755250852730,19.02898056,4633.6,4633.5,0.0018]
[1755250853797,18.56737624,4633.6,4633.5,0.0018]
[1755250854503,7.50053571,4633.6,4633.5,0.0018]
[1755250856832,2.15819574,4633.5,4633.3,1e-08]
[1755250857028,6.03440513,4633.4,4633.3,1e-08]
[1755250857200,7.04144232,4633.4,4633.3,1e-08]
[1755250857702,7.12791732,4633.4,4633.3,1e-08]
[1755250857907,7.58912031,4633.4,4633.3,1e-08]
[1755250858230,9.01000053,4633.4,4633.3,1e-08]
[1755250858595,4.12680053,4633.4,4633.3,1e-08]
[1755250858828,3.76720299,4633.4,4633.3,1e-08]
[1755250859334,3.306,4633.4,4633.3,0.61270001]
[1755250859542,3.306,4633.4,4633.3,1e-08]
[1755250861535,0.08645,4634.7,4633.3,1e-08]
[1755250861720,2.15801262,4633.9,4633.3,0.31750001]
[1755250862036,2.15810284,4633.7,4633.3,1e-08]
[1755250862236,5.46317746,4633.6,4633.3,1e-08]
[1755250862436,0.02016281,4633.5,4633.3,1e-08]
[1755250862628,3.305,4633.4,4633.3,1e-08]
[1755250863620,0.002,4634.2,4633.3,2.15827169]
[1755250863824,0.002,4634.2,4634.1,2.15791631]
[1755250864032,0.002,4634.2,4634.1,2.17949547]
[1755250864335,0.002,4634.2,4634.1,2.78789547]
[1755250864555,0.002,4634.2,4634.1,5.78789547]
[1755250864749,0.002,4634.2,4634.1,5.76631631]
[1755250864904,0.002,4634.2,4634.1,7.9176182]
[1755250865243,0.002,4635.2,4634.2,0.55]
[1755250865428,0.002,4635.2,4635.1,2.15745075]
[1755250865829,0.002,4635.2,4635.1,5.17902525]
[1755250866025,0.002,4635.2,4635.1,5.76585075]
[1755250866242,0.002,4635.2,4635.1,7.9170586]
[1755250866748,0.002,4635.2,4635.1,4.3086586]
[1755250866952,0.002,4635.2,4635.1,2.26545075]
[1755250867751,0.002,4635.2,4635.1,2.87385075]
[1755250868119,0.002,4635.2,4635.1,2.58295075]
[1755250868452,0.002,4635.2,4635.1,2.26545075]
[1755250868658,0.002,4635.2,4635.1,0.108]
[1755250868860,0.002,4635.2,4634.6,5.15767001]
[1755250869043,0.002,4635.2,4634.9,0.108]
[1755250869658,0.002,4635.2,4635.1,2.15745075]
[1755250870231,0.002,4635.2,4634.9,0.108]
[1755250870429,0.002,4635.2,4635.0,2.15749717]
[1755250870830,0.002,4635.2,4634.9,0.108]
[1755250871347,0.5809,4635.1,4634.0,0.648081]
[1755250871544,0.46646281,4635.0,4634.3,2.1578116]
[1755250871738,0.4463,4635.0,4634.3,2.1578116]
[1755250872149,0.60106281,4634.9,4633.4,0.5809]
[1755250872338,0.108,4634.7,4634.0,2.26596263]
[1755250872541,2.15763695,4634.7,4633.8,2.15804038]
[1755250872761,0.108,4634.3,4633.8,2.15804038]
[1755250872965,1.0272,4634.2,4633.8,2.15804038]
[1755250873331,0.4463,4634.1,4633.8,2.15804038]
[1755250873563,0.108,4634.3,4633.8,2.15804038]
[1755250873767,0.5543,4634.3,4633.8,2.15804038]
[1755250873961,1.1352,4634.3,4633.8,2.15804038]
[1755250874266,0.6889,4634.3,4633.8,2.15804038]
[1755250874454,0.4463,4634.2,4633.8,2.15804038]
[1755250874970,0.4463,4634.2,4633.7,0.108]
[1755250875140,0.5809,4634.1,4633.3,1e-08]
[1755250875471,0.108,4633.9,4633.3,2.1582838]
[1755250875835,0.108,4633.9,4633.3,1e-08]
[1755250876040,0.6889,4633.9,4633.3,1e-08]
[1755250877179,1.1352,4633.9,4633.3,1e-08]
[1755250877340,1.1352,4633.9,4633.3,2.15828664]
[1755250877858,6.65135936,4633.8,4633.3,1e-08]
[1755250878062,5.05404053,4633.8,4633.3,1e-08]
[1755250878263,2.15814917,4633.6,4633.3,1e-08]
[1755250878439,2.26624232,4633.4,4633.3,1e-08]
[1755250878641,2.15838207,4633.1,4633.0,0.001]
[1755250878868,6.2053854,4633.1,4633.0,0.001]
[1755250879070,6.18522259,4633.1,4633.0,0.001]
[1755250879269,7.21242259,4633.1,4633.0,0.001]
[1755250881368,9.02486793,4633.1,4633.0,0.001]
[1755250882687,7.99766793,4633.1,4633.0,0.001]
[1755250882880,11.30166793,4633.1,4633.0,0.001]
[1755250883470,12.35506793,4633.1,4633.0,0.001]
[1755250883682,9.14328586,4633.1,4633.0,0.001]
[1755250883869,7.33084052,4633.1,4633.0,0.001]
[1755250885054,2.15875483,4632.3,4632.1,0.001]
[1755250885180,9.03296424,4632.2,4629.6,3.304]
[1755250885384,5.70889464,4632.0,4629.7,2.15995802]
[1755250885580,5.70889464,4632.0,4629.9,2.15986881]
[1755250885920,0.55,4631.5,4629.6,3.304]
[1755250886075,2.1597165,4630.3,4629.3,2.16015045]
[1755250886286,5.49290098,4630.2,4629.4,0.21601505]
[1755250886618,3.313,4630.2,4629.5,2.16004357]
[1755250886789,3.313,4630.2,4629.6,2.15999081]
[1755250887397,3.313,4630.2,4629.5,2.1600595]
[1755250887720,3.313,4630.2,4629.5,2.16004637]
[1755250888284,5.47275019,4630.2,4629.3,2.16011027]
[1755250888517,0.108,4629.6,4629.4,2.37610394]
[1755250888844,0.108,4630.0,4629.5,2.16006048]
[1755250888997,0.108,4630.0,4629.6,0.3193]
[1755250889197,0.108,4630.0,4629.8,2.15990704]
[1755250889730,0.108,4630.0,4629.9,2.15987386]
[1755250890810,0.108,4630.0,4629.4,0.108]
[1755250891015,0.108,4630.0,4629.6,2.16001297]
[1755250891016,0.02016281,4629.9,4629.6,2.16001297]
[1755250891227,0.108,4630.0,4629.7,2.15996168]
[1755250891529,0.108,4630.0,4629.4,0.108]
[1755250891834,0.108,4630.0,4629.6,2.16001204]
[1755250891835,0.582,4630.0,4629.6,2.16001204]
[1755250892004,1.0534,4629.9,4629.1,2.26820357]
[1755250892201,3.314,4629.8,4629.4,2.16006599]
[1755250892417,3.314,4629.8,4629.3,2.1601538]
[1755250892736,3.314,4629.8,4629.5,2.16002072]
[1755250892898,3.314,4629.8,4629.3,2.16012099]
[1755250893100,3.314,4629.8,4629.1,2.26822464]
[1755250893327,0.108,4629.6,4629.1,2.26822464]
[1755250893500,0.108,4629.6,4629.5,2.16006048]
[1755250896742,0.108,4629.6,4629.1,2.26821487]
[1755250896743,0.108,4629.6,4629.3,2.16011136]
[1755250896916,0.108,4629.6,4629.4,2.16010344]
[1755250897241,0.582,4629.6,4629.0,0.001]
[1755250897547,0.108,4629.6,4629.1,2.16024713]
[1755250898042,0.108,4629.6,4629.5,2.16006048]
[1755250900242,0.108,4629.6,4629.0,0.109]
[1755250900444,0.02016281,4629.5,4629.0,0.109]
[1755250900631,0.6874,4629.6,4629.0,0.109]
[1755250900632,1.0534,4629.4,4629.3,2.1601538]
[1755250900834,0.108,4629.6,4629.5,0.001]
[1755250901147,2.01092405,4629.6,4629.5,0.001]
[1755250903839,6.03276457,4629.6,4629.5,0.001]
[1755250904033,5.18324052,4629.6,4629.5,0.001]
[1755250906064,7.34325434,4629.6,4629.5,0.001]
[1755250906442,6.49500834,4629.6,4629.5,0.001]
[1755250908268,6.9539156,4629.6,4629.5,0.001]
[1755250908471,7.5333156,4629.6,4629.5,0.001]
[1755250908667,8.83383931,4629.6,4629.5,0.001]
[1755250908871,12.38383931,4629.6,4629.5,0.001]
[1755250909946,12.5830823,4629.6,4629.5,0.001]
[1755250910855,12.5830823,4629.6,4629.0,0.0018]
[1755250910856,2.71024713,4629.1,4629.0,0.0018]
[1755250911068,18.87216019,4629.1,4629.0,0.0018]
[1755250911261,19.90539738,4629.1,4629.0,0.0018]
[1755250911466,23.08393531,4629.1,4629.0,1e-08]
[1755250912182,23.08593531,4629.1,4629.0,1e-08]
[1755250912544,2.71034046,4628.9,4628.8,0.001]
[1755250912740,6.48224772,4628.9,4628.8,0.001]
[1755250912941,9.48224772,4628.9,4628.8,0.001]
[1755250913246,10.47364772,4628.9,4628.8,0.001]
[1755250913781,10.5017919,4628.9,4628.8,0.001]
[1755250913981,11.80231561,4628.9,4628.8,0.001]
[1755250914387,8.6885586,4628.9,4628.8,0.001]
[1755250914570,12.0005586,4628.9,4628.8,0.001]
[1755250914895,12.0015586,4628.9,4628.8,0.001]
[1755250915889,2.71071389,4628.1,4628.0,0.001]
[1755250916078,6.13271389,4628.1,4628.0,0.001]
[1755250916385,2.26871389,4628.1,4628.0,0.001]
[1755250916574,5.47471389,4628.1,4628.0,0.001]
[1755250916770,5.93362115,4628.1,4628.0,0.001]
[1755250917176,6.13286414,4628.1,4628.0,0.001]
[1755250917480,6.13206414,4628.1,4628.0,0.001]
[1755250919194,0.65815025,4628.1,4628.0,0.001]
[1755250919399,3.97115025,4628.1,4628.0,0.001]
[1755250919705,3.97215025,4628.1,4628.0,1.0161]
[1755250919998,3.97215025,4628.1,4628.0,3.17686058]
[1755250920150,0.65815025,4628.1,4628.0,3.17686058]
[1755250920356,3.97215025,4628.1,4628.0,3.49454664]
[1755250920556,0.65815025,4628.1,4628.0,3.49454664]
[1755250920812,4.54659954,4628.1,4628.0,3.49454664]
[1755250921103,1.23259954,4628.1,4628.0,3.49454664]
[1755250921665,0.65815025,4628.1,4628.0,3.49454664]
[1755250921885,3.77590726,4628.1,4628.0,3.49454664]
[1755250922203,0.45890726,4628.1,4628.0,3.49454664]
[1755250922889,0.60259336,4628.8,4628.7,2.16043381]
[1755250923256,0.60259336,4628.8,4628.7,3.17553381]
[1755250924373,0.02814407,4628.8,4628.7,3.17553381]
[1755250925189,0.02814407,4628.8,4628.7,3.19713814]
[1755250925357,0.02814407,4628.8,4628.7,4.06460217]
[1755250925691,0.57444929,4630.1,4629.1,2.16024713]
[1755250925890,3.317,4629.9,4628.8,2.16038714]
[1755250926196,3.317,4629.9,4629.5,2.16006033]
[1755250926494,0.45996256,4629.8,4629.7,2.15996716]
[1755250926891,0.45996256,4629.8,4629.7,3.17506716]
[1755250928072,0.002,4630.1,4630.0,2.15982721]
[1755250928990,0.002,4630.1,4629.9,2.15986365]
[1755250929393,0.002,4630.1,4630.0,2.15982721]
[1755250929999,0.002,4630.1,4630.0,3.28292721]
[1755250930161,0.002,4630.1,4630.0,3.88164281]
[1755250931362,0.002,4630.1,4630.0,6.88164281]
[1755250931894,0.002,4630.1,4630.0,5.86654281]
[1755250932063,0.002,4630.1,4630.0,6.88164281]
[1755250937539,0.002,4630.1,4630.0,6.40774281]
[1755250938097,0.002,4630.1,4630.0,6.88164281]
[1755250943157,0.002,4630.1,4630.0,10.19064281]
[1755250944017,0.002,4630.1,4630.0,10.15954281]
[1755250946652,0.002,4630.1,4630.0,22.7754135]
[1755250947059,0.002,4630.1,4630.0,22.6674135]
[1755250948727,0.002,4630.1,4630.0,23.6514135]
[1755250949351,0.002,4630.1,4630.0,9.06754281]
[1755250949551,0.002,4630.1,4630.0,22.6674135]
[1755250950334,0.002,4630.1,4630.0,23.0968135]
[1755250950529,0.002,4630.1,4630.0,23.6514135]
[1755250950761,0.002,4630.1,4630.0,23.6522135]
[1755250950965,0.002,4630.1,4630.0,22.6682135]
[1755250951268,0.002,4630.1,4630.0,9.06834281]
[1755250956862,0.002,4630.1,4630.0,10.05234281]
[1755250957854,1e-08,4630.1,4630.0,9.06834281]
[1755250958170,0.002,4630.6,4630.5,2.15959399]
[1755250958370,0.002,4630.6,4630.5,22.79839004]
[1755250958770,0.002,4630.6,4630.5,5.89151935]
[1755250959096,1.0027,4630.6,4630.5,6.19851935]
[1755250959493,1.0019,4630.6,4630.5,5.46659399]
[1755250960592,1.0019,4630.6,4630.2,5.4667306]
[1755250960781,0.5265,4630.5,4630.2,2.1597306]
[1755250960986,0.5265,4630.5,4630.1,3.307]
[1755250960987,1.0007,4630.5,4630.3,2.15967335]
[1755250961468,0.0012,4630.6,4630.4,2.15964063]
[1755250961675,0.0012,4630.6,4630.3,2.15967727]
[1755250962094,5.02254052,4630.5,4630.3,2.15967727]
[1755250962303,4.02184052,4630.5,4630.3,2.15967727]
[1755250962463,1.0007,4630.4,4630.3,2.15967727]
[1755250962662,1.0007,4630.4,4630.0,5.46762072]
[1755250962890,4.02184052,4630.5,4630.1,2.15978056]
[1755250962891,1.0007,4630.3,4630.1,2.15978056]
[1755250963289,4.02184052,4630.5,4630.1,2.15978056]
[1755250963290,1.0007,4630.2,4630.1,2.15978056]
[1755250966516,4.02184052,4630.5,4630.4,2.15964063]
[1755250967410,0.0012,4630.6,4630.5,2.15959399]
[1755250967725,0.4754,4630.6,4630.5,2.18118992]
[1755250968604,0.0012,4630.6,4630.5,2.18118992]
[1755250968779,0.0012,4630.6,4630.5,2.15959399]
[1755250969622,0.0012,4630.6,4630.5,2.94381338]
[1755250969821,0.0012,4630.6,4630.5,5.94381338]
[1755250970024,0.0012,4630.6,4630.5,6.90621745]
[1755250970326,0.002,4631.0,4630.9,2.15940745]
[1755250970505,0.002,4631.0,4630.9,8.48800152]
[1755250970710,0.002,4631.0,4630.9,10.35895501]
[1755250970921,0.002,4631.0,4630.9,10.91435501]
[1755250973713,1e-08,4631.0,4630.9,10.91435501]
[1755250974732,1e-08,4631.1,4631.0,2.15936082]
[1755250974903,1e-08,4631.2,4631.1,5.1593142]
[1755250975106,1e-08,4631.2,4631.1,10.96293582]
[1755250978098,1e-08,4631.2,4631.1,10.49813582]
[1755250978432,1e-08,4631.2,4631.1,9.97643582]
[1755250981452,0.46330001,4631.2,4631.1,9.97643582]
[1755250981618,1.00190001,4631.2,4631.1,9.97643582]
[1755250982310,0.46330001,4631.2,4630.9,0.0008]
[1755250982550,1.02206281,4631.1,4630.9,0.0008]
[1755250982730,1.0019,4631.1,4630.5,2.15958701]
[1755250982928,1e-08,4631.2,4630.5,2.15958701]
[1755250983139,1.0019,4631.0,4630.4,2.1596402]
[1755250983337,1.0019,4631.0,4630.1,3.306]
[1755250983338,0.02016281,4630.9,4630.1,3.306]
[1755250983619,1.0019,4630.9,4630.6,2.15953945]
[1755250983814,1e-08,4631.2,4630.6,2.15953945]
[1755250984023,1.0019,4630.8,4630.4,2.15960137]
[1755250984229,1.0019,4630.7,4630.5,2.15957929]
[1755250984443,1.0019,4630.6,4630.5,2.15957929]
[1755250984963,1.0019,4630.6,4630.5,2.16057929]
[1755250991372,1.0019,4630.6,4630.5,2.16057929]
[1755250993174,5.02374052,4630.6,4630.5,2.16057929]
[1755250996694,4.02184052,4630.6,4630.5,2.16057929]
[1755250996859,0.002,4631.1,4631.0,2.15936082]
[1755250997176,0.002,4631.1,4631.0,5.46536082]
[1755250997345,0.002,4631.1,4631.0,6.45186082]
[1755250998247,0.002,4631.1,4631.0,9.45186082]
[1755251001890,0.0012,4631.1,4631.0,9.45186082]
[1755251002088,0.0012,4631.1,4631.0,10.61298976]
[1755251003973,1e-08,4631.2,4631.1,2.1593142]
[1755251004187,1e-08,4631.2,4631.1,3.14360734]
[1755251004674,1e-08,4631.2,4631.1,16.73504395]
[1755251005014,1e-08,4631.2,4631.1,16.71345081]
[1755251005186,1e-08,4631.2,4631.1,17.95521485]
[1755251006339,1e-08,4631.2,4631.1,18.47571485]
[1755251006638,1e-08,4631.2,4631.1,18.91791485]
[1755251007509,1e-08,4631.2,4631.1,18.47571485]
[1755251007714,1e-08,4631.2,4631.1,17.95521485]
[1755251008818,1e-08,4631.2,4631.1,21.26021485]
[1755251010619,0.43450001,4631.5,4631.4,2.15917433]
[1755251010916,0.43450001,4631.5,4631.4,7.66863837]
[1755251011312,0.97520001,4631.5,4631.4,8.46417433]
[1755251012719,0.97520001,4631.5,4631.4,5.46417433]
[1755251012921,4.99704053,4631.5,4631.1,0.0008]
[1755251013100,0.974,4631.4,4631.2,2.15926757]
[1755251013296,4.02304053,4631.5,4631.2,2.15926757]
[1755251013496,0.974,4631.3,4631.2,2.15926757]
[1755251013797,4.99584052,4631.3,4631.1,2.16011074]
[1755251013997,0.974,4631.2,4631.1,0.0008]
[1755251014199,5.01600333,4631.2,4631.1,0.0008]
[1755251014404,5.49756085,4631.2,4631.1,0.0008]
[1755251020327,5.49956085,4631.2,4631.1,0.0008]
[1755251020700,8.80456085,4631.2,4631.1,0.0008]
[1755251022132,5.49956085,4631.2,4631.1,0.0008]
[1755251022332,8.80456085,4631.2,4631.1,0.0008]
[1755251025641,5.49956085,4631.2,4631.1,0.0008]
[1755251025836,8.80456085,4631.2,4631.1,0.0008]
[1755251026337,8.80456085,4631.2,4631.1,2.1601142]
[1755251026338,4.02384052,4631.2,4631.1,2.1601142]
[1755251026912,0.002,4631.2,4631.1,3.1228142]
[1755251027226,1e-08,4631.2,4631.1,6.1228142]
[1755251027421,1e-08,4631.2,4631.1,8.31027886]
[1755251027626,0.00120001,4631.5,4631.4,2.15917433]
[1755251027839,0.00120001,4631.5,4631.4,18.77220268]
[1755251028007,0.00120001,4631.5,4631.4,18.75061094]
[1755251028211,0.00120001,4631.5,4631.4,19.71331094]
[1755251028420,0.00120001,4631.5,4631.4,21.91777498]
[1755251030749,0.00120001,4631.5,4631.4,25.22277498]
[1755251030951,0.00120001,4631.5,4631.4,25.22357498]
[1755251032332,0.00120001,4631.5,4631.4,20.95587498]
[1755251032537,0.00120001,4631.5,4631.4,24.25987498]
[1755251033147,0.00120001,4631.5,4631.4,25.22217498]
[1755251040545,0.00120001,4631.5,4631.4,24.76637498]
[1755251040759,0.00120001,4631.5,4631.4,24.25987498]
[1755251040940,0.00120001,4631.5,4631.4,25.22217498]
[1755251042737,1e-08,4631.5,4631.4,25.22217498]
[1755251042937,0.002,4632.2,4632.0,2.15889464]
[1755251043175,0.002,4632.2,4632.0,22.48511669]
[1755251043970,0.0012,4632.1,4632.0,22.48511669]
[1755251044978,0.002,4632.4,4632.1,3.0]
[1755251045277,0.002,4632.4,4632.3,5.15875483]
[1755251047482,1e-08,4632.9,4632.4,5.15870822]
[1755251047697,1e-08,4632.9,4632.8,18.74995845]
[1755251047921,1e-08,4632.9,4632.8,22.05295845]
[1755251048201,1e-08,4632.9,4632.8,23.01525845]
[1755251048696,1e-08,4632.9,4632.8,23.56525845]
[1755251048898,0.4395,4634.0,4633.2,2.15833549]
[1755251049059,0.4395,4634.0,4633.2,8.67716904]
[1755251049775,0.4395,4634.1,4633.4,2.15824232]
[1755251049958,0.4395,4634.1,4633.4,22.07326135]
[1755251050160,0.4395,4634.1,4633.4,22.05167893]
[1755251051004,0.002,4634.2,4633.4,23.01397893]
[1755251051178,0.002,4634.2,4633.4,25.21924297]
[1755251051382,0.002,4634.2,4633.4,24.25694297]
[1755251051978,0.002,4634.2,4634.1,2.15791631]
[1755251052183,0.002,4634.2,4634.1,19.05135292]
[1755251052385,0.932,4634.2,4634.1,19.05135292]
[1755251052984,0.932,4634.2,4634.1,15.74935292]
[1755251053180,0.932,4634.2,4633.5,3.302]
[1755251053371,0.93,4634.1,4633.8,2.15804583]
[1755251053572,0.93,4634.0,4633.4,0.0008]
[1755251053774,0.93,4633.9,4633.5,2.15819154]
[1755251053974,0.93,4633.8,4633.5,2.15819154]
[1755251054233,0.93,4633.7,4633.5,2.15819154]
[1755251054403,0.002,4634.2,4633.5,2.15819154]
[1755251054611,0.93,4633.6,4633.5,2.15819154]
[1755251054975,0.93,4633.6,4633.4,2.1590322]
[1755251055180,2.1579228,4634.1,4633.4,2.1590322]
[1755251055381,0.93,4634.0,4633.4,2.1590322]
[1755251055582,0.002,4633.7,4633.4,2.1590322]
[1755251055904,0.93,4633.6,4633.5,2.15819574]
[1755251059696,4.95184052,4633.6,4633.4,0.0008]
[1755251059895,4.02184052,4633.6,4633.4,0.0008]
[1755251060110,0.93,4633.5,4633.4,0.0008]
[1755251060620,0.9292,4633.5,4633.4,2.15904232]
[1755251060916,0.9292,4633.5,4633.4,0.0008]
[1755251061686,0.9292,4633.5,4633.4,2.15904232]
[1755251062679,0.9292,4633.5,4633.4,0.0008]
[1755251065434,1.42450405,4633.5,4633.4,0.0008]
[1755251065735,5.44634457,4633.5,4633.4,0.0008]
[1755251066584,7.60454031,4633.5,4633.4,0.0008]
[1755251066815,5.44634457,4633.5,4633.4,0.0008]
[1755251068918,8.74734457,4633.5,4633.4,0.0008]
[1755251069920,5.44634457,4633.5,4633.4,0.0008]
[1755251070098,8.74734457,4633.5,4633.4,0.0008]
[1755251074919,7.81814457,4633.5,4633.4,0.0008]
[1755251075249,7.78954052,4633.5,4633.4,0.0008]
[1755251075650,7.32284052,4633.5,4633.4,0.0008]
[1755251077649,4.02184052,4633.5,4633.4,0.0008]
[1755251077813,7.32284052,4633.5,4633.4,0.0008]
[1755251079249,3.301,4633.5,4633.4,0.0008]
[1755251079944,0.002,4633.6,4633.4,0.0008]
[1755251080250,0.002,4633.6,4633.5,2.15819574]
[1755251080419,0.002,4633.6,4633.5,2.15899574]
[1755251080420,3.303,4633.6,4633.5,2.15899574]
[1755251080618,0.002,4633.6,4633.5,2.15899574]
[1755251086122,0.002,4633.6,4633.5,3.58398223]
[1755251086446,0.0012,4633.6,4633.5,3.58398223]
[1755251086850,0.0012,4633.6,4633.5,2.59298223]
[1755251087864,0.0012,4633.6,4633.5,3.58398223]
[1755251088854,0.0012,4633.6,4633.5,3.11548223]
[1755251089285,0.0012,4633.6,4633.5,3.58398223]
[1755251089466,0.0012,4633.6,4633.5,6.60556418]
[1755251089628,0.0012,4633.6,4633.5,6.58398223]
[1755251090567,1e-08,4633.6,4633.5,6.58398223]
[1755251090867,1e-08,4633.6,4633.5,7.13398223]
[1755251093173,1e-08,4633.6,4633.5,10.43298223]
[1755251097854,1e-08,4633.6,4633.5,22.48341884]
[1755251099739,1e-08,4633.6,4633.5,5.45799574]
[1755251099935,5.00444053,4633.6,4633.5,2.15899574]
[1755251100139,5.00444053,4633.6,4633.5,0.0008]
[1755251100368,5.00444053,4633.6,4633.5,2.15899574]
[1755251101782,5.00444053,4633.6,4633.5,0.0008]
[1755251102662,5.00364053,4633.6,4633.5,0.0008]
[1755251103482,10.96035375,4633.6,4633.5,0.0008]
[1755251104394,11.03475375,4633.6,4633.5,0.0008]
[1755251105791,6.17923626,4633.5,4633.4,2.3298262]
[1755251106169,7.16183626,4633.5,4633.4,2.3298262]
[1755251106786,10.45983626,4633.5,4633.4,2.3298262]
[1755251107067,11.77932718,4633.5,4633.4,2.3298262]
[1755251109706,9.62113144,4633.5,4633.4,2.3298262]
[1755251109894,11.77932718,4633.5,4633.4,2.3298262]
[1755251110084,9.62113144,4633.5,4633.4,2.3298262]
[1755251113876,9.09973144,4633.5,4633.4,2.3298262]
[1755251114076,4.02104052,4633.5,4633.4,2.3298262]
[1755251114278,7.31904052,4633.5,4633.4,2.3298262]
[1755251114692,8.30164052,4633.5,4633.4,2.3298262]
[1755251115092,7.78024052,4633.5,4633.4,2.3298262]
[1755251115293,7.31904052,4633.5,4633.4,2.3298262]
[1755251116026,7.31904052,4633.5,4633.4,4.48806852]
[1755251116225,0.0744,4633.6,4633.5,2.15819574]
[1755251116523,3.3724,4633.6,4633.4,2.77873305]
[1755251116723,0.9826,4633.5,4633.4,2.3298262]
[1755251118632,0.4612,4633.5,4633.4,4.48806852]
[1755251119224,3.3724,4633.6,4633.4,4.48806468]
[1755251119621,3.3724,4633.6,4633.4,2.3298262]
[1755251119798,3.3724,4633.6,4633.4,4.48805865]
[1755251119999,0.0744,4633.6,4633.5,2.15819574]
[1755251120235,3.3724,4633.6,4633.5,2.15819574]